bitfinex-derivatives/quotes_BTCF0:USTF0_20210406
["timestamp","ask_amount","ask_price","bid_price","bid_amount"]
[1617670872533,1.0,59463.0,59459.0,0.21353152]
[1617670872833,1.0,59465.0,59459.0,0.21353152]
[1617670874235,1.0394377,59468.0,59459.0,0.21353152]
[1617670874636,1.58945875,59468.0,59459.0,0.21353152]
[1617670875036,1.0,59467.0,59459.0,0.21353152]
[1617670875236,1.0,59467.0,59459.0,0.10727]
[1617670875437,0.0394377,59468.0,59466.0,2.7562]
[1617670877237,0.0394377,59468.0,59467.0,0.10725655]
[1617670877437,0.0394377,59468.0,59467.0,0.15715655]
[1617670878237,3.77e-05,59468.0,59467.0,0.15715655]
[1617670878842,3.77e-05,59468.0,59467.0,1.15715655]
[1617670879043,3.77e-05,59468.0,59467.0,0.15715655]
[1617670879941,3.77e-05,59468.0,59467.0,1.15715655]
[1617670881447,3.77e-05,59468.0,59467.0,0.15715655]
[1617670881646,0.0511,59480.0,59467.0,0.15715655]
[1617670881846,0.0511,59480.0,59467.0,1.15715655]
[1617670882146,0.0511,59480.0,59474.0,1.0]
[1617670882347,0.10725655,59486.0,59479.0,3.1279]
[1617670883549,0.10725655,59486.0,59485.0,0.10725655]
[1617670888461,0.10725655,59486.0,59485.0,0.21435655]
[1617670891162,0.10725655,59486.0,59485.0,0.10725655]
[1617670892163,1.10725655,59486.0,59485.0,0.10725655]
[1617670892861,0.10725655,59486.0,59485.0,0.10725655]
[1617670893062,1.10725655,59486.0,59485.0,0.10725655]
[1617670894862,2.60725655,59486.0,59485.0,0.10725655]
[1617670895163,1.10725655,59486.0,59485.0,0.10725655]
[1617670897069,0.10725655,59486.0,59485.0,0.10725655]
[1617670897268,1.10725655,59486.0,59485.0,0.10725655]
[1617670898572,2.60725655,59486.0,59485.0,0.10725655]
[1617670898972,2.60725655,59486.0,59485.0,0.1062619]
[1617670900469,1.10725655,59486.0,59485.0,0.1062619]
[1617670901872,0.10725655,59486.0,59485.0,0.2667319]
[1617670902071,1.10725655,59486.0,59485.0,0.2667319]
[1617670903173,1.10725655,59486.0,59485.0,0.1062619]
[1617670903973,1.60725655,59486.0,59485.0,0.1062619]
[1617670904174,2.60725655,59486.0,59485.0,0.1062619]
[1617670905175,1.60725655,59486.0,59485.0,0.1062619]
[1617670905375,2.60725655,59486.0,59485.0,0.1062619]
[1617670907178,7.60725655,59486.0,59485.0,0.1062619]
[1617670907379,7.60725655,59486.0,59462.0,2.943]
[1617670907579,0.2,59485.0,59471.0,0.10725655]
[1617670907781,5.0,59480.0,59471.0,0.10725655]
[1617670907980,1.5,59479.0,59471.0,0.10725655]
[1617670908180,1.0,59472.0,59471.0,0.10725655]
[1617670908380,2.65413,59472.0,59471.0,0.10725655]
[1617670908792,7.65413,59472.0,59433.0,2.7402]
[1617670909082,2.65413,59472.0,59433.0,2.7402]
[1617670909283,7.65413,59472.0,59433.0,2.7402]
[1617670909493,1.0,59446.0,59445.0,0.10725655]
[1617670909684,0.10725655,59459.0,59445.0,0.10725655]
[1617670910085,1.0,59446.0,59445.0,0.10725655]
[1617670911990,0.10725655,59459.0,59445.0,0.10725655]
[1617670912189,1.0,59446.0,59445.0,0.10725655]
[1617670912889,2.5,59446.0,59445.0,0.10725655]
[1617670913289,0.12365,59448.0,59445.0,0.10725655]
[1617670913490,0.10725655,59446.0,59445.0,0.10725655]
[1617670913691,1.10725655,59446.0,59445.0,0.10725655]
[1617670913892,0.10725655,59446.0,59445.0,0.10725655]
[1617670914292,1.10725655,59446.0,59445.0,0.10725655]
[1617670914691,0.10725655,59446.0,59445.0,0.10725655]
[1617670914892,1.10725655,59446.0,59445.0,0.10725655]
[1617670915094,0.10725655,59446.0,59445.0,0.10725655]
[1617670915594,1.0,59448.0,59445.0,0.10725655]
[1617670915794,0.10725655,59452.0,59445.0,0.20717655]
[1617670916494,1.10725655,59452.0,59445.0,0.20717655]
[1617670916695,1.0,59448.0,59445.0,0.20717655]
[1617670916895,1.0,59448.0,59445.0,0.10725655]
[1617670917294,1.0,59450.0,59445.0,0.10725655]
[1617670917494,1.0,59453.0,59452.0,0.10725655]
[1617670919301,1.0,59459.0,59452.0,0.10725655]
[1617670919505,0.56975655,59476.0,59475.0,0.10725655]
[1617670919809,0.10725655,59476.0,59475.0,0.26559655]
[1617670921997,0.55035162,59490.0,59475.0,0.26559655]
[1617670922220,0.55218515,59484.0,59475.0,0.26559655]
[1617670922598,0.55217433,59485.0,59475.0,0.26559655]
[1617670923698,0.55217433,59485.0,59484.0,0.10725655]
[1617670924499,0.55217251,59486.0,59484.0,0.10725655]
[1617670924910,0.55236885,59485.0,59484.0,0.10626199]
[1617670925201,0.55236663,59486.0,59484.0,0.10626199]
[1617670927205,0.55237255,59485.0,59484.0,0.10626199]
[1617670928105,1.55237255,59485.0,59484.0,0.10626199]
[1617670928706,1.0,59485.0,59484.0,0.10626199]
[1617670929309,1.55398459,59485.0,59484.0,0.10626199]
[1617670930013,0.55398459,59485.0,59484.0,0.10626199]
[1617670930810,1.55398459,59485.0,59484.0,0.10626199]
[1617670933012,0.55398459,59485.0,59484.0,0.10626199]
[1617670933214,0.55398459,59485.0,59459.0,0.2]
[1617670933215,1.55398459,59485.0,59459.0,0.31627]
[1617670933614,1.0,59473.0,59459.0,0.31627]
[1617670933815,1.0,59473.0,59472.0,0.10725655]
[1617670934015,0.55398802,59478.0,59472.0,0.10725655]
[1617670934216,1.0,59473.0,59472.0,0.10725655]
[1617670935317,0.05,59477.0,59472.0,0.10725655]
[1617670935616,1.0,59474.0,59472.0,0.23495655]
[1617670936717,0.05,59477.0,59472.0,0.23495655]
[1617670937218,1.0,59473.0,59472.0,0.23495655]
[1617670938321,1.0,59473.0,59472.0,0.10725655]
[1617670939021,0.55424673,59477.0,59472.0,0.10725655]
[1617670939221,1.0,59473.0,59472.0,0.10725655]
[1617670940522,0.55393437,59479.0,59472.0,0.10725655]
[1617670940721,1.0,59478.0,59472.0,0.20694655]
[1617670940922,1.0,59475.0,59472.0,0.20694655]
[1617670941222,1.0,59473.0,59472.0,0.20694655]
[1617670941722,1.10725655,59473.0,59472.0,0.10725655]
[1617670942022,1.66123397,59473.0,59472.0,0.10626193]
[1617670942221,0.66123397,59473.0,59472.0,0.10626193]
[1617670942424,3.16123397,59473.0,59453.0,3.4905]
[1617670942625,3.16123397,59473.0,59440.0,0.28488255]
[1617670942823,2.5138,59468.0,59440.0,0.28488255]
[1617670943124,1.0,59454.0,59440.0,0.28488255]
[1617670943323,1.13803,59454.0,59434.0,0.28525317]
[1617670943723,1.13803,59454.0,59424.0,2.6082]
[1617670943724,1.63803,59454.0,59450.0,0.10725655]
[1617670944123,1.0,59435.0,59432.0,0.28535269]
[1617670944424,1.10536,59435.0,59432.0,0.28535269]
[1617670944626,1.10536,59435.0,59428.0,0.28555696]
[1617670945025,1.10536,59435.0,59426.0,0.28569674]
[1617670945424,1.0,59435.0,59426.0,0.28569674]
[1617670945825,1.0,59435.0,59434.0,0.10725655]
[1617670946026,0.10725655,59444.0,59434.0,0.10725655]
[1617670946732,1.0,59435.0,59434.0,0.10725655]
[1617670947027,1.13802,59435.0,59434.0,0.10725655]
[1617670947472,1.13802,59435.0,59422.0,0.28553635]
[1617670947666,2.63802,59435.0,59420.0,0.2856745]
[1617670947869,1.0,59423.0,59421.0,0.10725655]
[1617670948027,1.12936,59423.0,59421.0,0.10725655]
[1617670948357,0.12936,59423.0,59421.0,0.10725655]
[1617670949231,1.5,59422.0,59421.0,0.10725655]
[1617670949632,7.5,59422.0,59421.0,0.10725655]
[1617670949832,7.60725655,59422.0,59421.0,0.10725655]
[1617670950734,2.60725655,59422.0,59421.0,0.10725655]
[1617670951134,6.05425655,59422.0,59421.0,0.10725655]
[1617670951733,6.10405655,59422.0,59421.0,0.10725655]
[1617670951934,1.10725655,59422.0,59421.0,0.10725655]
[1617670953133,1.10725655,59422.0,59412.0,2.904]
[1617670953334,1.10725655,59422.0,59405.0,0.28598514]
[1617670953335,1.21614655,59422.0,59401.0,0.41431206]
[1617670953535,1.71614655,59422.0,59401.0,0.41431206]
[1617670953735,1.0,59402.0,59401.0,0.1281]
[1617670953935,1.0,59402.0,59401.0,0.23535655]
[1617670955036,1.0,59402.0,59401.0,0.52133922]
[1617670955438,1.0,59402.0,59401.0,0.23535655]
[1617670955635,1.13509,59402.0,59401.0,0.23535655]
[1617670957638,1.13509,59402.0,59401.0,0.10725655]
[1617670957941,1.24234655,59402.0,59401.0,0.10725655]
[1617670961851,2.74234655,59402.0,59401.0,0.10725655]
[1617670963048,2.94234655,59402.0,59375.0,0.1281]
[1617670963345,7.94234655,59402.0,59374.0,0.28605734]
[1617670963633,1.0,59376.0,59365.0,0.28650284]
[1617670963791,1.14608,59376.0,59365.0,0.28650284]
[1617670963982,1.0,59375.0,59371.0,0.10725655]
[1617670964403,1.0,59372.0,59358.0,0.28669298]
[1617670964596,1.5,59371.0,59351.0,0.28704269]
[1617670965147,1.5,59371.0,59348.0,0.34445123]
[1617670965148,1.5,59371.0,59348.0,0.28722072]
[1617670965349,1.5,59371.0,59346.0,0.2872961]
[1617670965948,1.0,59347.0,59343.0,0.28743884]
[1617670966147,1.14491,59347.0,59343.0,0.28743884]
[1617670966350,1.0,59344.0,59342.0,0.28744964]
[1617670966750,1.0,59344.0,59339.0,0.34493957]
[1617670966751,1.0,59344.0,59341.0,0.28752382]
[1617670967352,0.14491,59347.0,59338.0,0.34502858]
[1617670967353,1.0,59342.0,59338.0,0.28758271]
[1617670967551,2.5,59342.0,59338.0,0.28758271]
[1617670967751,2.5,59342.0,59330.0,0.42178798]
[1617670967752,2.5,59342.0,59337.0,0.28750149]
[1617670967952,1.0,59339.0,59338.0,0.10725655]
[1617670969253,1.0,59339.0,59330.0,0.28788537]
[1617670969454,1.0,59339.0,59329.0,0.28796176]
[1617670969693,6.0,59339.0,59329.0,0.28796176]
[1617670969854,6.0,59339.0,59318.0,0.2885836]
[1617670969855,0.10725655,59322.0,59318.0,0.2885836]
[1617670970155,0.23848655,59322.0,59318.0,0.2885836]
[1617670970355,0.23749021,59322.0,59316.0,0.10725655]
[1617670970557,1.0,59319.0,59316.0,0.10725655]
[1617670971267,1.0,59317.0,59316.0,0.10725655]
[1617670972657,1.0,59317.0,59316.0,0.39280988]
[1617670972856,0.95018364,59317.0,59316.0,0.39280988]
[1617670973058,1.0,59317.0,59316.0,0.10725655]
[1617670975059,1.15498,59317.0,59316.0,0.10725655]
[1617670975358,1.15498,59317.0,59316.0,0.15845655]
[1617670975662,0.15498,59317.0,59316.0,0.10725655]
[1617670975960,1.15498,59317.0,59316.0,0.10725655]
[1617670978060,1.15498,59317.0,59316.0,3.61575655]
[1617670978262,1.0,59317.0,59316.0,3.77721655]
[1617670978464,1.0,59322.0,59316.0,3.77721655]
[1617670978662,1.0,59327.0,59316.0,3.77721655]
[1617670978861,3.3299,59351.0,59316.0,3.77721655]
[1617670979062,1.0,59322.0,59316.0,3.77721655]
[1617670979261,1.0,59320.0,59316.0,3.77721655]
[1617670979462,1.0,59317.0,59316.0,3.77721655]
[1617670980061,1.0,59317.0,59316.0,3.82821655]
[1617670980261,0.10725655,59332.0,59316.0,3.82821655]
[1617670980561,1.0,59327.0,59316.0,3.82821655]
[1617670980972,0.10725655,59332.0,59321.0,0.2]
[1617670981462,0.10725655,59332.0,59325.0,0.2]
[1617670981661,1.0,59338.0,59325.0,0.2]
[1617670981863,0.99900385,59338.0,59325.0,0.48370294]
[1617670982164,1.0,59340.0,59337.0,0.10725655]
[1617670982383,1.0,59344.0,59337.0,2.76256655]
[1617670982591,1.0,59346.0,59337.0,2.76256655]
[1617670982768,1.0,59354.0,59337.0,2.76256655]
[1617670982981,1.0,59350.0,59337.0,2.76256655]
[1617670983264,0.4901,59373.0,59337.0,2.76256655]
[1617670983465,1.0,59347.0,59337.0,2.76256655]
[1617670983666,0.4901,59373.0,59337.0,2.76256655]
[1617670983906,1.0,59357.0,59337.0,0.26636655]
[1617670984143,3.3634,59409.0,59370.0,0.10725655]
[1617670984364,1.0,59371.0,59370.0,0.20741655]
[1617670985367,1.0,59371.0,59370.0,0.10725655]
[1617670985970,1.10725655,59371.0,59370.0,0.10725655]
[1617670987170,6.21612655,59371.0,59340.0,2.9381]
[1617670987872,1.0,59341.0,59340.0,2.9381]
[1617670988072,1.10725655,59341.0,59340.0,0.10725655]
[1617670988873,1.24247655,59341.0,59340.0,0.10725655]
[1617670989273,0.24247655,59341.0,59340.0,0.10725655]
[1617670989473,1.24247655,59341.0,59322.0,0.28365721]
[1617670989674,1.24247655,59341.0,59321.0,3.3833]
[1617670989973,1.13522,59341.0,59332.0,0.10725655]
[1617670990174,0.13522,59341.0,59332.0,0.10725655]
[1617670990774,1.0,59333.0,59332.0,0.10725655]
[1617670992074,1.10725655,59333.0,59332.0,0.10725655]
[1617670992475,1.10725655,59333.0,59321.0,3.3833]
[1617670992678,1.10725655,59333.0,59303.0,0.28430153]
[1617670992877,1.0,59322.0,59302.0,0.28437125]
[1617670993076,1.10911,59322.0,59302.0,0.28437125]
[1617670993277,1.10911,59322.0,59295.0,2.5395]
[1617670993278,1.0,59314.0,59301.0,0.28440661]
[1617670993678,0.99900367,59314.0,59301.0,0.28440661]
[1617670994080,1.0,59314.0,59313.0,0.10725655]
[1617670995300,0.10725655,59319.0,59313.0,0.10725655]
[1617670995495,1.0,59314.0,59313.0,0.10725655]
[1617670996526,1.10399,59314.0,59313.0,0.10725655]
[1617670999481,1.0,59314.0,59313.0,0.10725655]
[1617671001284,1.12788,59314.0,59313.0,0.10725655]
[1617671003886,1.0,59314.0,59313.0,0.10725655]
[1617671006191,0.10725655,59319.0,59313.0,0.10725655]
[1617671006699,1.0,59314.0,59313.0,0.10725655]
[1617671006917,1.15321,59314.0,59313.0,0.10725655]
[1617671008401,0.15321,59314.0,59313.0,0.10725655]
[1617671008596,1.15321,59314.0,59313.0,0.10725655]
[1617671011896,0.15321,59314.0,59313.0,0.10725655]
[1617671012095,1.0,59314.0,59313.0,0.10725655]
[1617671012295,1.1479,59314.0,59313.0,0.10725655]
[1617671014498,1.0,59314.0,59313.0,0.10725655]
[1617671014897,1.0,59314.0,59313.0,0.21024655]
[1617671015998,1.0,59314.0,59313.0,0.10725655]
[1617671017600,1.0,59314.0,59313.0,0.25565655]
[1617671018704,1.0,59314.0,59313.0,0.10725655]
[1617671019306,1.0,59314.0,59313.0,1.17689365]
[1617671020133,0.43663963,59331.0,59326.0,0.10725655]
[1617671020505,0.43664885,59329.0,59326.0,0.10725655]
[1617671020705,1.0,59327.0,59326.0,0.10725655]
[1617671020905,1.43666129,59327.0,59326.0,0.10725655]
[1617671022121,3.04391784,59327.0,59326.0,0.10725655]
[1617671022316,2.04391784,59327.0,59326.0,0.10725655]
[1617671022535,3.21001049,59327.0,59326.0,0.10725655]
[1617671023509,3.21001049,59327.0,59312.0,0.42838072]
[1617671023510,3.70647068,59327.0,59315.0,0.29231705]
[1617671023909,3.70647068,59327.0,59316.0,0.29228736]
[1617671024110,5.0,59323.0,59316.0,0.29228736]
[1617671024310,0.10725655,59317.0,59314.0,0.39963045]
[1617671024510,3.0093,59315.0,59314.0,0.39963045]
[1617671024711,5.5093,59315.0,59314.0,0.39963045]
[1617671024911,5.5093,59315.0,59314.0,0.10725655]
[1617671025110,10.5093,59315.0,59311.0,0.29236878]
[1617671025311,11.11289203,59315.0,59310.0,0.29244002]
[1617671025610,6.0,59312.0,59310.0,0.29244002]
[1617671025912,1.936933,59311.0,59307.0,0.29262133]
[1617671026211,0.10725655,59309.0,59308.0,0.29262883]
[1617671026411,1.60725655,59309.0,59308.0,0.29262883]
[1617671026613,1.60725655,59309.0,59302.0,0.35130613]
[1617671026614,6.0,59308.0,59302.0,0.35130613]
[1617671026814,1.5,59307.0,59302.0,0.35130613]
[1617671027116,0.43699372,59303.0,59296.0,0.3516297]
[1617671027318,1.5,59302.0,59296.0,0.3516297]
[1617671027517,1.0,59297.0,59295.0,0.35175135]
[1617671028317,1.10725655,59296.0,59295.0,0.35175135]
[1617671028528,0.10725655,59296.0,59295.0,3.2098]
[1617671028817,1.0,59298.0,59295.0,3.6213122]
[1617671029017,1.0,59300.0,59295.0,3.7586322]
[1617671029218,1.0,59303.0,59295.0,3.7586322]
[1617671029420,1.0,59303.0,59297.0,0.35143952]
[1617671029619,0.4369489,59307.0,59297.0,0.35143952]
[1617671029821,0.43696213,59308.0,59301.0,0.35137213]
[1617671030221,1.5,59316.0,59305.0,0.10725655]
[1617671030222,0.43679983,59306.0,59305.0,0.10725655]
[1617671030919,1.43679983,59306.0,59305.0,0.10725655]
[1617671031520,0.43679983,59306.0,59305.0,0.10725655]
[1617671031721,1.0,59306.0,59305.0,0.10725655]
[1617671032221,1.10725655,59306.0,59305.0,0.10725655]
[1617671033123,1.10725655,59306.0,59294.0,0.35076464]
[1617671033425,7.70860655,59306.0,59295.0,0.35069022]
[1617671033724,7.70860655,59306.0,59290.0,0.35104761]
[1617671033725,1.0,59295.0,59290.0,0.35104761]
[1617671034023,1.0,59296.0,59290.0,0.35104761]
[1617671034229,1.0,59296.0,59294.0,0.10725655]
[1617671034423,0.43609776,59304.0,59294.0,0.10725655]
[1617671035224,1.0,59295.0,59294.0,0.10725655]
[1617671036325,1.10725655,59295.0,59294.0,0.10725655]
[1617671037327,1.10725655,59295.0,59287.0,0.35124038]
[1617671037528,4.66805655,59295.0,59287.0,0.35124038]
[1617671037728,4.66805655,59295.0,59288.0,0.0513]
[1617671037927,4.66805655,59295.0,59286.0,0.35142797]
[1617671038327,4.5608,59295.0,59291.0,0.10725655]
[1617671038727,1.0,59292.0,59291.0,0.10725655]
[1617671038929,1.12178,59292.0,59291.0,0.10725655]
[1617671040429,2.72903655,59292.0,59291.0,0.10725655]
[1617671040741,2.72903655,59292.0,59282.0,0.35161967]
[1617671040742,1.72903655,59292.0,59282.0,0.35161967]
[1617671041027,1.22903655,59292.0,59282.0,0.35161967]
[1617671041228,1.66597128,59292.0,59282.0,0.35161967]
[1617671041533,1.0,59283.0,59278.0,0.43069655]
[1617671042138,1.0,59279.0,59278.0,0.43069655]
[1617671042359,1.0,59279.0,59278.0,0.10725655]
[1617671042550,1.0,59281.0,59278.0,0.10725655]
[1617671042733,1.0,59281.0,59278.0,1.43883051]
[1617671043142,1.0,59281.0,59280.0,0.78254993]
[1617671045337,1.0,59281.0,59280.0,0.35214747]
[1617671045835,1.0,59281.0,59280.0,0.40284747]
[1617671046335,1.0,59281.0,59280.0,0.46266105]
[1617671046937,1.0,59281.0,59280.0,0.41196105]
[1617671047338,1.0,59281.0,59280.0,0.35214747]
[1617671048338,0.0511,59281.0,59280.0,3.75184747]
[1617671048739,1.0,59290.0,59280.0,4.18137843]
[1617671049038,1.0,59288.0,59280.0,4.18137843]
[1617671049239,1.0,59288.0,59286.0,0.35140435]
[1617671049439,0.10725655,59298.0,59286.0,0.35140435]
[1617671049639,0.10725655,59298.0,59287.0,0.05]
[1617671049839,0.10725655,59298.0,59285.0,0.35137019]
[1617671050039,1.0,59287.0,59285.0,0.35137019]
[1617671050242,1.0,59286.0,59285.0,0.35137019]
[1617671050740,1.0,59286.0,59282.0,0.35161769]
[1617671050940,0.0509,59285.0,59282.0,0.35161769]
[1617671051340,0.0509,59285.0,59277.0,0.42975495]
[1617671051341,0.0509,59285.0,59281.0,0.35165478]
[1617671051541,1.0,59283.0,59281.0,0.35165478]
[1617671051741,0.22899655,59287.0,59280.0,0.35172265]
[1617671051742,1.0,59282.0,59280.0,0.35172265]
[1617671052342,0.10725655,59281.0,59275.0,0.35202076]
[1617671052743,0.15795655,59281.0,59275.0,0.35202076]
[1617671053243,0.15795655,59281.0,59274.0,0.45948773]
[1617671053644,1.0,59275.0,59274.0,0.45948773]
[1617671053846,1.1009,59275.0,59274.0,0.45948773]
[1617671054044,1.1009,59275.0,59274.0,0.10725655]
[1617671054545,0.20815655,59275.0,59274.0,0.10725655]
[1617671054744,1.20815655,59275.0,59274.0,0.10725655]
[1617671054945,1.25815655,59275.0,59267.0,0.47975999]
[1617671055245,1.20815655,59275.0,59267.0,0.47975999]
[1617671055847,1.20815655,59275.0,59267.0,0.1281]
[1617671056048,1.0,59268.0,59267.0,0.1281]
[1617671056448,1.10725655,59268.0,59267.0,0.23535655]
[1617671056849,1.10725655,59268.0,59267.0,0.52848724]
[1617671057049,1.15755655,59268.0,59267.0,0.52848724]
[1617671057853,1.10725655,59268.0,59267.0,0.52848724]
[1617671058051,1.10725655,59268.0,59267.0,0.23535655]
[1617671058551,1.10725655,59268.0,59267.0,0.52834448]
[1617671059450,1.10725655,59268.0,59267.0,0.23535655]
[1617671059852,1.15855655,59268.0,59267.0,0.23535655]
[1617671060252,1.10725655,59268.0,59267.0,0.23535655]
[1617671060453,1.10725655,59268.0,59267.0,0.52842088]
[1617671060953,1.10725655,59268.0,59267.0,0.23535655]
[1617671062056,1.15795655,59268.0,59255.0,0.31070775]
[1617671062457,1.0,59268.0,59262.0,0.10725655]
[1617671062756,3.4119,59276.0,59262.0,0.10725655]
[1617671062958,1.0,59263.0,59262.0,0.10725655]
[1617671064458,1.0,59264.0,59262.0,0.10725655]
[1617671064758,1.0,59266.0,59262.0,0.10725655]
[1617671065058,0.10725655,59268.0,59262.0,0.10725655]
[1617671065059,1.0,59263.0,59262.0,0.10725655]
[1617671065258,0.10725655,59268.0,59262.0,0.10725655]
[1617671065458,1.0,59267.0,59262.0,0.10725655]
[1617671065669,1.0,59263.0,59262.0,0.10725655]
[1617671067062,0.10725655,59268.0,59262.0,0.10725655]
[1617671067565,1.0,59273.0,59262.0,0.10725655]
[1617671068465,0.10725655,59273.0,59272.0,0.10725655]
[1617671069564,1.10725655,59273.0,59272.0,0.10725655]
[1617671071766,1.10725655,59273.0,59251.0,0.2]
[1617671071966,1.24508655,59273.0,59251.0,0.2]
[1617671072366,1.0,59253.0,59248.0,0.1281]
[1617671072667,1.13949,59253.0,59248.0,0.1281]
[1617671072966,1.13949,59253.0,59249.0,0.05983646]
[1617671073467,1.0,59251.0,59249.0,0.05983646]
[1617671073767,0.13949,59253.0,59249.0,0.05983646]
[1617671074367,0.13949,59253.0,59252.0,0.10725655]
[1617671074866,0.13949,59253.0,59252.0,0.16709541]
[1617671075266,1.13949,59253.0,59252.0,0.16709541]
[1617671075468,3.71739,59253.0,59252.0,0.16709541]
[1617671075669,3.71739,59253.0,59252.0,0.10725655]
[1617671076572,3.71739,59253.0,59248.0,0.1281]
[1617671077497,1.0,59249.0,59248.0,0.1281]
[1617671077904,2.71739,59253.0,59248.0,0.1281]
[1617671078106,1.0,59249.0,59248.0,0.1281]
[1617671078319,1.0,59253.0,59248.0,0.25642]
[1617671078498,3.99715655,59249.0,59248.0,0.23557655]
[1617671079173,3.99715655,59249.0,59248.0,0.10725655]
[1617671080481,4.03612,59249.0,59239.0,0.10725655]
[1617671080883,1.0,59243.0,59239.0,0.10725655]
[1617671081682,1.0,59242.0,59239.0,0.10725655]
[1617671081884,1.0,59240.0,59239.0,0.10725655]
[1617671082478,1.10725655,59240.0,59239.0,0.10725655]
[1617671082978,0.10725655,59240.0,59239.0,0.10725655]
[1617671083178,1.10725655,59240.0,59239.0,0.10725655]
[1617671083379,0.10725655,59240.0,59239.0,0.10725655]
[1617671083780,1.10725655,59240.0,59239.0,0.10725655]
[1617671084081,0.10725655,59240.0,59239.0,0.10725655]
[1617671084682,2.9551,59244.0,59239.0,0.10725655]
[1617671084980,1.0,59263.0,59239.0,0.45413655]
[1617671085181,1.0,59263.0,59240.0,0.0598542]
[1617671085581,1.0,59261.0,59240.0,0.0598542]
[1617671085880,1.0,59256.0,59240.0,0.0598542]
[1617671086181,3.6306,59268.0,59241.0,0.2]
[1617671086583,1.0,59263.0,59257.0,0.10725655]
[1617671087283,1.0,59261.0,59257.0,0.10725655]
[1617671087481,1.0,59258.0,59257.0,0.10725655]
[1617671088483,1.10725655,59258.0,59257.0,0.10725655]
[1617671092286,1.10725655,59258.0,59245.0,0.35430396]
[1617671092495,0.10725655,59252.0,59251.0,0.29658133]
[1617671092891,0.10725655,59252.0,59238.0,0.10725655]
[1617671092892,2.71135655,59252.0,59249.0,0.29670089]
[1617671093489,3.71135655,59252.0,59243.0,0.29692405]
[1617671093893,3.71135655,59252.0,59242.0,0.29692782]
[1617671094096,2.71135655,59252.0,59242.0,0.29692782]
[1617671094589,1.10725655,59243.0,59242.0,0.29692782]
[1617671094792,1.21319655,59243.0,59240.0,0.29693643]
[1617671095293,1.21319655,59243.0,59239.0,0.29694791]
[1617671095294,1.0,59241.0,59239.0,0.29694791]
[1617671095694,1.0,59241.0,59238.0,0.10725655]
[1617671096093,1.0,59241.0,59238.0,0.40419219]
[1617671096292,1.0,59239.0,59238.0,0.40419219]
[1617671096596,0.10725655,59243.0,59239.0,0.29695325]
[1617671096892,0.10725655,59243.0,59239.0,0.41603325]
[1617671097093,0.10725655,59243.0,59239.0,0.11908]
[1617671097793,0.10725655,59243.0,59242.0,0.29673354]
[1617671098694,0.10725655,59243.0,59239.0,0.35616561]
[1617671098695,1.10725655,59243.0,59239.0,0.29694144]
[1617671098894,1.23123655,59243.0,59239.0,0.29694144]
[1617671099097,1.0,59240.0,59238.0,0.29695849]
[1617671099496,1.0,59240.0,59235.0,0.35635019]
[1617671099497,2.9625,59239.0,59235.0,0.29696448]
[1617671100097,2.9625,59239.0,59212.0,0.5543337]
[1617671100098,2.9625,59239.0,59234.0,0.29697363]
[1617671100296,1.0,59236.0,59234.0,0.29697363]
[1617671100499,2.9625,59239.0,59233.0,0.29668007]
[1617671100500,1.10725655,59235.0,59233.0,0.29668007]
[1617671100899,1.10725655,59235.0,59234.0,0.29661345]
[1617671101299,0.10725655,59235.0,59232.0,0.29618047]
[1617671101999,1.10725655,59235.0,59232.0,0.29618047]
[1617671102223,0.10725655,59235.0,59233.0,0.29616279]
[1617671102499,0.10725655,59235.0,59234.0,0.10725655]
[1617671102700,0.10725655,59235.0,59234.0,0.40326304]
[1617671103399,2.9625,59239.0,59234.0,0.40326304]
[1617671103699,0.3559328,59254.0,59234.0,0.40326304]
[1617671103999,0.3559328,59254.0,59238.0,0.65175803]
[1617671104199,0.3559328,59254.0,59239.0,0.2]
[1617671104443,0.3559328,59254.0,59238.0,0.65175803]
[1617671104601,0.3559328,59254.0,59234.0,0.54176191]
[1617671104602,0.10725655,59252.0,59245.0,0.29604809]
[1617671104801,1.0,59250.0,59245.0,0.29604809]
[1617671105001,1.0,59250.0,59231.0,0.69341349]
[1617671105002,1.0,59250.0,59247.0,0.29591833]
[1617671105402,1.0,59250.0,59246.0,0.29569329]
[1617671105604,0.10725655,59252.0,59246.0,0.29569329]
[1617671105605,1.0,59247.0,59246.0,0.29569329]
[1617671106204,1.0,59249.0,59246.0,0.29569329]
[1617671106404,1.0,59250.0,59246.0,0.29569329]
[1617671106603,1.0,59250.0,59249.0,0.10725655]
[1617671106904,0.10725655,59252.0,59249.0,0.10725655]
[1617671107805,1.0,59250.0,59247.0,0.29564077]
[1617671108005,1.0,59250.0,59246.0,0.295699]
[1617671108205,1.0,59248.0,59246.0,0.295699]
[1617671108405,0.24533655,59252.0,59241.0,0.29603602]
[1617671108406,1.0,59247.0,59241.0,0.29603602]
[1617671108605,1.0,59247.0,59246.0,0.10725655]
[1617671110707,0.10725655,59247.0,59246.0,0.10725655]
[1617671111008,1.10725655,59247.0,59246.0,0.10725655]
[1617671112008,0.10725655,59247.0,59246.0,0.10725655]
[1617671112411,1.10725655,59247.0,59246.0,0.10725655]
[1617671113013,1.10725655,59247.0,59244.0,0.29590966]
[1617671113214,3.6457,59245.0,59244.0,0.29590966]
[1617671113410,4.6457,59245.0,59244.0,0.29590966]
[1617671113611,4.6457,59245.0,59240.0,0.29610343]
[1617671114313,3.6457,59245.0,59241.0,0.29629162]
[1617671114714,3.6457,59245.0,59242.0,0.2962604]
[1617671115936,3.6457,59245.0,59237.0,0.05986468]
[1617671115937,3.6457,59245.0,59240.0,0.29638409]
[1617671116115,1.0,59243.0,59240.0,0.29638409]
[1617671116619,0.10725655,59241.0,59240.0,0.29638409]
[1617671116823,0.10725655,59241.0,59237.0,0.3556609]
[1617671116824,0.10725655,59241.0,59226.0,0.10725655]
[1617671116826,0.10725655,59241.0,59238.0,0.29678362]
[1617671117023,1.10725655,59241.0,59238.0,0.29678362]
[1617671117227,1.0,59239.0,59238.0,0.29678362]
[1617671119718,0.10725655,59241.0,59238.0,0.29678362]
[1617671119927,1.0,59239.0,59238.0,0.29678362]
[1617671120824,1.10725655,59241.0,59238.0,0.29678362]
[1617671121424,0.10725655,59241.0,59239.0,0.2973142]
[1617671121723,0.10725655,59241.0,59240.0,0.29730815]
[1617671126028,1.10725655,59241.0,59240.0,0.29730815]
[1617671126931,1.10725655,59241.0,59240.0,0.65505271]